Workbook

Sheet Sheet1
A1: 序号 | B1: 项目名称 | C1: 数量 | D1: 单位 | E1: 备注 | F1: 主材 | G1: 辅材 | H1: 人工 | I1: 合计 | J1: 合价
A2: 一 | B2: 拆除项目
B3: 原天花粉刷层铲除 | C3: =6.48*6.49+2.33*1.8 -> 46.25 | D3: m2
B4: 原墙面粉刷层铲除 | C4: =C32+C46 -> 129.90 | D4: m2
B5: 楼梯地砖拆除 | C5: 16.00 | D5: 阶
B6: 移门及门套拆除 | C6: 1.00 | D6: 樘
B7: 卫生间墙砖拆除 | C7: =(2.33+1.8)*2*2.56 -> 21.15 | D7: m2
B8: 卫生间地砖及垫高层拆除 | C8: =2.33*1.8 -> 4.19 | D8: m2
B9: 一楼新开双开门门洞 | C9: 1.00 | D9: 樘
A11: 二 | B11: 天花项目
B12: 一楼房间批灰打磨做乳胶漆 | C12: =(8.29*2.33+3.55*5.01)*1.1 -> 40.81 | D12: m2 | E12: 多乐士净味乳胶漆
B13: 二楼房间批灰打磨做乳胶漆 | C13: =(2.33*3.82+3.55*6.19)*1.1 -> 33.96 | D13: m2 | E13: 多乐士净味乳胶漆
B14: 楼梯间天花批灰打磨做乳胶漆 | C14: =(1*5+1*1.15+2.12*1.71)*1.1 -> 10.75 | D14: m2 | E14: 多乐士净味乳胶漆
B15: 卫生间批灰打磨做乳胶漆 | C15: =2.33*1.8 -> 4.19 | D15: m2 | E15: 多乐士防水乳胶漆
A17: 三 | B17: 地面项目
B18: 室内地面找平处理 | C18: 27.00 | D18: m2 | E18: 不平整处修复、木基层铺设
B19: 一楼地面铺地板 | C19: =8.29*2.33+3.55*5.01 -> 37.10 | D19: m2 | E19: 实木复合地板
B20: 二楼地面铺地板 | C20: =2.33*3.82+3.55*6.19 -> 30.88 | D20: m2 | E20: 实木复合地板
B21: 楼梯间地面铺地砖 | C21: =1*1.15+2.12*1.71 -> 4.78 | D21: m2 | E21: 防滑地砖
B22: 楼梯间安装实木踏步 | C22: 16.00 | D22: 阶 | E22: 实木踏步
B23: 楼梯间安装实木踏步刷油漆 | C23: =1*0.27*16 -> 4.32 | D23: m2 | E23: 经典漆
B24: 楼梯间踏步贴花砖 | C24: =1*0.18*16 -> 2.88 | D24: m2 | E24: 样式、主材待定
B25: 卫生间地面清理找平 | C25: =2.33*1.8 -> 4.19 | D25: m2 | E25: 海螺水泥
B26: 卫生间地面一次防水 | C26: =2.33*1.8 -> 4.19 | D26: m2 | E26: 防水涂料、二遍
B27: 卫生间地面防水保护层 | C27: =2.33*1.8 -> 4.19 | D27: m2 | E27: 海螺水泥
B28: 卫生间地面铺砖 | C28: =2.33*1.8 -> 4.19 | D28: m2 | E28: 样式、主材待定
B29: 定制安装淋浴房 | C29: 4.40 | D29: m2 | E29: 成品定制
A31: 四 | B31: 立面项目
B32: 一楼墙面批灰打磨做乳胶漆 | C32: =((3.55+5.04)*2*1.53+(2.33+3.82)*2*1.53+(2.33+2.33+2.12)*1.62+(1.8+2.33)*2*1.62)*1.1 -> 76.42 | D32: m2 | E32: 多乐士净味乳胶漆
B33: 一楼护墙板修补打磨 | C33: =((3.55+5.04)*2*0.94+(2.33+3.82)*2*0.94+(2.33+2.33+2.12)*0.94+(1.8+2.33)*2*0.94)*1.05 -> 43.94 | D33: m2 | E33: 护墙板修补打磨
B34: 一楼护墙板喷漆 | C34: =C33 -> 43.94 | D34: m2 | E34: 一底两面
B35: 一楼原入户门封堵 | C35: =0.9*2.05 -> 1.85 | D35: m2 | E35: 砌块砖
B36: 一楼原入户门封堵处粉刷找平 | C36: =C35*2 -> 3.69 | D36: m2 | E36: 海螺水泥
B37: 一楼入户门封堵处新做护墙板 | C37: =0.9*0.94 -> 0.85 | D37: m2 | E37: 同原有样式
B38: 一楼新做护墙板喷漆 | C38: =C37 -> 0.85 | D38: m2
B39: 一楼药房新做取药窗口 | C39: =1.87*1.3 -> 2.43 | D39: m2 | E39: 新砌矮墙
B40: 一楼药房新做取药窗口包不锈钢 | C40: 1.00 | D40: 樘 | E40: 木作基层 不锈钢包边
B41: 一楼药房新开门洞 | C41: 1.00 | D41: 项 | E41: 拆墙、门框修补
B42: 一楼药房新做门套、木门 | C42: 1.00 | D42: 套 | E42: 样式同现有木门
B43: 一楼药房新做木门五金件安装 | C43: 1.00 | D43: 套 | E43: 不锈钢五金
B44: 一楼大门定制对开防盗门 | C44: 1.00 | D44: 套 | E44: 1730*2220/成品定制
B45: 一楼大门定制单开防盗门 | C45: 1.00 | D45: 套 | E45: 780*2360/成品定制
B46: 二楼墙面批灰打磨做乳胶漆 | C46: =((6.19+3.55)*2*1.53+(2.33+3.82)*2*1.53)*1.1 -> 53.49 | D46: m2 | E46: 多乐士净味乳胶漆
B47: 二楼护墙板修补打磨 | C47: =((6.19+3.55)*2*0.94+(2.33+3.82)*2*0.94)*1.05 -> 31.37 | D47: m2 | E47: 护墙板修补打磨
B48: 二楼护墙板喷漆 | C48: =C47 -> 31.37 | D48: m2
B49: 楼梯间墙面批灰打磨做乳胶漆 | C49: =((2.7+2.3)*2.47*2)*1.1 -> 27.17 | D49: m2 | E49: 多乐士净味乳胶漆
B50: 楼梯间窗户翻新及切割原有防护格栅 | C50: 1.00 | D50: 项 | E50: 打磨、刷防锈漆
B51: 卫生间墙面清理找平 | C51: =(2.33+1.8)*2*2.56 -> 21.15 | D51: m2 | E51: 海螺水泥
B52: 卫生间墙面防水 | C52: =(2.33+1.8)*2*2.56 -> 21.15 | D52: m2 | E52: 防水涂料、二遍
B53: 卫生间墙面贴砖 | C53: =(2.33+1.8)*2*2.56 -> 21.15 | D53: m2 | E53: 样式待定
A55: 五 | B55: 机电项目
B56: 卫生间及诊疗室冷热水管接驳安装 | C56: 1.00 | D56: 项 | E56: 铭仕PPR
B57: 卫生间及诊疗室排水管接驳安装 | C57: 1.00 | D57: 项 | E57: 中财PVC
B58: 室内强电排管布线 | C58: =(6.48*6.49+2.33*1.8)*2 -> 92.50 | D58: m2 | E58: 中财PVC管、起帆电线
B59: 提供及安装插座面板 | C59: 50.00 | D59: 套 | E59: 西门子
B60: 提供及安装开关面板 | C60: 10.00 | D60: 套 | E60: 西门子
B61: 室内电话回路排管布线 | C61: 3.00 | D61: 回路 | E61: 安普
B62: 提供及安装电话面板 | C62: 3.00 | D62: 套 | E62: 西门子
B63: 室内网络排管布线 | C63: 4.00 | D63: 回路 | E63: 安普
B64: 提供及安装网络面板 | C64: 4.00 | D64: 套 | E64: 西门子
B65: 室内配电箱接驳安装 | C65: 2.00 | D65: 套 | E65: 人民电气
B66: 安装明装平板灯 | C66: 14.00 | D66: 套 | E66: 主材甲供
B67: 墙地面开槽及修补 | C67: 1.00 | D67: 项 | E67: 海螺水泥等
B68: 提供及安装台盆柜 | C68: 2.00 | D68: 套 | E68: 成品采购、安装
B69: 提供及安装装饰镜 | C69: 1.00 | D69: 套 | E69: 成品采购、安装
B70: 提供及安装马桶 | C70: 1.00 | D70: 套 | E70: 成品采购、安装
B71: 提供及安装花洒 | C71: 1.00 | D71: 套 | E71: 成品采购、安装
B72: 提供及安装换气扇 | C72: 1.00 | D72: 套 | E72: 成品采购、安装
B73: 卫生间提供及安装三角阀 | C73: 7.00 | D73: 套 | E73: 成品采购、安装
B74: 卫生间提供及安装软管 | C74: 7.00 | D74: 套 | E74: 成品采购、安装
A76: 六 | B76: 其他项目
B77: 垃圾清理 | C77: 1.00 | D77: 项 | E77: 搬运至物业指定点
B78: 完工清洁 | C78: 1.00 | D78: 项

Sheet Sheet2

Sheet Sheet3
